[Event "GER-ch Youth-U12 2024"]
[Site "Willingen"]
[Date "2024.05.25"]
[Round "9"]
[White "Andersen, Jonathan"]
[Black "Zhang, Yibo"]
[Result "0-1"]
[ECO "C45"]
[WhiteElo "1693"]
[BlackElo "1988"]
[Annotator "RC"]
[PlyCount "136"]
[EventDate "2022.06.05"]
[EventType "swiss"]
[EventRounds "9"]
[EventCountry "GER"]
[SourceTitle "playchess.com"]
[Source "ChessBase"]
[SourceQuality "1"]
[TimeControl "40/4500+30:900+30"]

1. e4 {[%emt 0:00:00]} e5 {[%emt 0:00:00]} 2. Nf3 {[%emt 0:00:00]} Nc6 {[%emt 0:00:00]} 3. d4 {[%emt 0:00:00]} exd4 {[%emt 0:00:00]} 4. Nxd4 {[%emt 0:00:00]} Nf6 {[%emt 0:00:00]} 5. Nxc6 {[%emt 0:00:00]} bxc6 {[%emt 0:00:00]} 6. e5 {[%emt 0:00:00]} Qe7 {[%emt 0:00:00]} 7. Qe2 {[%emt 0:00:00]} Nd5 {[%emt 0:00:00]} 8. c4 {[%emt 0:00:00]} Ba6 {[%emt 0:00:00]} 9. g3 {[%emt 0:00:00]} g6 {[%emt 0:00:00]} 10. b3 {[%emt 0:00:00]} Bg7 {[%emt 0:00:00]} 11. Bb2 {[%emt 0:00:00]} O-O {[%emt 0:00:00]} 12. Bg2 {[%emt 0:00:00]} Rae8 {[%emt 0:00:00]} 13. O-O {[%emt 0:00:00]} Bxe5 {[%emt 0:00:00]} 14. Qxe5 {[%emt 0:00:00]} Qxe5 {[%emt 0:00:00]} 15. Bxe5 {[%emt 0:00:00]} Rxe5 {[%emt 0:00:00]} 16. cxd5 {[%emt 0:00:00]} Bxf1 {[%emt 0:00:00]} 17. Kxf1 {[%emt 0:00:00]} cxd5 {[%emt 0:00:00]} 18. Nd2 {[%emt 0:00:00]} Rfe8 {[%emt 0:00:00]} 19. Bf3 {[%emt 0:00:00]} c6 {[%emt 0:00:00]} 20. Rc1 {[%emt 0:00:00]} Kg7 {[%emt 0:00:00]} 21. b4 {[%emt 0:00:00]} Kf6 {[%emt 0:00:00]} 22. Nb3 {[%emt 0:00:00]} Ke7 {[%emt 0:00:00]} 23. Re1 {[%emt 0:01:49]} Kd6 {[%emt 0:00:00]} 24. Rxe5 {[%emt 0:00:10]} Rxe5 {[%emt 0:00:00]} 25. Nc5 {[%emt 0:05:03]} Kc7 {[%emt 0:01:11]} 26. Be2 {[%emt 0:02:19]} d6 {[%emt 0:00:27]} 27. Nd3 {[%emt 0:00:05]} Re8 {[%emt 0:00:48]} 28. Ke1 {[%emt 0:04:55]} Kb6 {[%emt 0:00:30]} 29. Kd2 {[%emt 0:07:08]} c5 {[%emt 0:03:28]} 30. Nf4 {[%emt 0:20:33]} Re5 {[%emt 0:31:01]} 31. Bf3 {[%emt 0:03:01]} d4 {[%emt 0:06:27]} 32. Nd3 {[%emt 0:07:58]} Re8 {[%emt 0:01:33]} 33. Nf4 {[%emt 0:00:41]} Kb5 {[%emt 0:04:16]} 34. Nd5 {[%emt 0:00:37]} Re5 {[%emt 0:09:37]} 35. Be2+ {[%emt 0:03:02]} Kc6 {[%emt 0:15:33]} 36. Bf3 {[%emt 0:00:14]} Kd7 {[%emt 0:02:01]} 37. Kd3 {[%emt 0:17:30]} Re1 {[%emt 0:02:11]} 38. bxc5 {[%emt 0:03:07]} dxc5 {[%emt 0:02:28]} 39. Nf6+ {[%emt 0:00:00]} Kd6 {[%emt 0:05:26]} 40. Ne4+ {[%emt 0:00:00]} Kc6 {[%emt 0:00:20]} 41. Ng5+ {[%emt 0:03:52]} Kb5 {[%emt 0:00:00]} 42. Nxf7 {[%emt 0:00:25]} Kb4 {[%emt 0:00:00]} 43. Nd6 {[%emt 0:00:54]} Rf1 {[%emt 0:00:00]} 44. Ne4 {[%emt 0:01:04]} Ra1 {[%emt 0:00:00]} 45. Nd2 {[%emt 0:07:58]} Rxa2 {[%emt 0:00:00]} 46. Bd5 {[%emt 0:00:08]} Ra6 {[%emt 0:00:00]} 47. f4 {[%emt 0:00:29]} Rd6 {[%emt 0:00:06]} 48. Bc4 {[%emt 0:01:37]} a5 {[%emt 0:02:03]} 49. Ne4 {[%emt 0:02:14]} Rb6 {[%emt 0:01:02]} 50. g4 {[%emt 0:00:13]} a4 {[%emt 0:01:46]} 51. f5 {[%emt 0:00:13]} gxf5 {[%emt 0:00:06]} 52. gxf5 {[%emt 0:00:06]} Rh6 {[%emt 0:01:35]} 53. f6 {[%emt 0:00:46]} Rh3+ {[%emt 0:01:05]} 54. Ng3 {[%emt 0:00:06]} Rxh2 {[%emt 0:00:20]} 55. f7 {[%emt 0:00:34]} Rf2 {[%emt 0:00:06]} 56. Be6 {[%emt 0:01:34]} Rf3+ {[%emt 0:02:33]} 57. Ke4 {[%emt 0:00:56]} Rf6 {[%emt 0:00:50]} 58. Ke5 {[%emt 0:00:17]} Rxf7 {[%emt 0:00:36]} 59. Bxf7 {[%emt 0:00:05]} d3 {[%emt 0:00:52]} 60. Nf1 {[%emt 0:03:39]} a3 {[%emt 0:06:35]} 61. Ba2 {[%emt 0:04:23]} h5 {[%emt 0:01:12]} 62. Ke4 {[%emt 0:00:15]} Kc3 {[%emt 0:01:13]} 63. Kd5 {[%emt 0:00:19]} h4 {[%emt 0:05:17]} 64. Ke4 {[%emt 0:03:34]} d2 {[%emt 0:02:42]} 65. Ne3 {[%emt 0:01:50]} Kb2 {[%emt 0:03:04]} 66. Bc4 {[%emt 0:00:12]} a2 {[%emt 0:01:09]} 67. Nd1+ {[%emt 0:01:47]} Kc1 {[%emt 0:00:13]} 68. Kd3 {[%emt 0:01:03]} a1=Q {[%emt 0:00:32]} 0-1

[Event "GER-ch Youth-U12 2024"]
[Site "Willingen"]
[Date "2024.05.25"]
[Round "9"]
[White "Subocz, Barbara"]
[Black "Grabowski, Joshua"]
[Result "0-1"]
[ECO "C01"]
[WhiteElo "1692"]
[BlackElo "1532"]
[Annotator "NA RC"]
[PlyCount "78"]
[EventDate "2022.06.05"]
[EventType "swiss"]
[EventRounds "9"]
[EventCountry "GER"]
[SourceTitle "playchess.com"]
[Source "ChessBase"]
[SourceQuality "1"]
[TimeControl "40/4500+30:900+30"]

1. e4 {[%emt 0:00:00]} e6 {[%emt 0:00:00]} 2. d4 {[%emt 0:00:00]} d5 {[%emt 0:00:00]} 3. exd5 {[%emt 0:00:00]} exd5 {[%emt 0:00:00]} 4. Nf3 {[%emt 0:00:00]} Bd6 {[%emt 0:00:00]} 5. c4 {[%emt 0:00:00]} c6 {[%emt 0:00:00]} 6. Nc3 {[%emt 0:00:00]} Ne7 {[%emt 0:00:00]} 7. Bd3 {[%emt 0:00:00]} dxc4 {[%emt 0:00:00]} 8. Bxc4 {[%emt 0:00:00]} O-O {[%emt 0:00:00]} 9. O-O {[%emt 0:00:00]} Bg4 {[%emt 0:00:00]} 10. h3 {[%emt 0:00:00]} Bh5 {[%emt 0:00:00]} 11. Qd3 {[%emt 0:00:00]} Qc7 {[%emt 0:00:00]} 12. Ng5 {[%emt 0:00:00]} Bg6 {[%emt 0:00:00]} 13. Qf3 {[%emt 0:00:00]} h6 {[%emt 0:00:00]} 14. Nge4 {[%emt 0:00:00]} Nf5 {[%emt 0:01:17]} 15. Nxd6 {[%emt 0:00:00]} Qxd6 {[%emt 0:02:36]} 16. d5 {[%emt 0:02:56]} Nd4 {[%emt 0:06:05]} 17. Qg4 {[%emt 0:03:46]} Nc2 {[%emt 0:01:51]} 18. Rb1 {[%emt 0:00:24]} Nb4 {[%emt 0:00:44]} 19. Ra1 {[%emt 0:00:23]} cxd5 {[%emt 0:01:29]} 20. Bb3 {[%emt 0:00:43]} N8c6 {[%emt 0:07:46]} 21. Bf4 {[%emt 0:01:59]} Qe6 {[%emt 0:04:13]} 22. Rad1 {[%emt 0:04:36]} Qxg4 {[%emt 0:01:06]} 23. hxg4 {[%emt 0:03:25]} d4 {[%emt 0:03:08]} 24. Nb5 {[%emt 0:00:00]} Nc2 {[%emt 0:01:27]} 25. Rc1 {[%emt 0:00:00]} d3 {[%emt 0:00:39]} 26. Rfd1 {[%emt 0:00:29]} a6 {[%emt 0:01:06]} 27. Nc7 {[%emt 0:00:41]} Rac8 {[%emt 0:00:53]} 28. Nd5 {[%emt 0:01:16]} Rfe8 {[%emt 0:02:15]} 29. Nb6 {[%emt 0:03:49]} Rcd8 {[%emt 0:01:02]} 30. Kh2 {[%emt 0:02:55]} N6d4 {[%emt 0:01:37]} 31. Ba4 {[%emt 0:01:00]} Re4 {[%emt 0:03:00]} 32. Bg3 {[%emt 0:02:00]} Ne2 {[%emt 0:02:10]} 33. Rxc2 {[%emt 0:00:50]} Rdd4 {[%emt 0:04:51]} 34. Rcd2 {[%emt 0:01:31]} Rb4 {[%emt 0:01:14]} 35. Rxd3 {[%emt 0:01:24]} Rxb6 {[%emt 0:01:30]} 36. Bb3 {[%emt 0:00:51]} Rxg4 {[%emt 0:01:04]} 37. Rd8+ {[%emt 0:00:21]} Kh7 {[%emt 0:00:12]} 38. Rf8 {[%emt 0:00:17]} Rbb4 {[%emt 0:00:43]} 39. Kh3 {[%emt 0:00:57]} Bf5 {[%emt 0:00:35]} 0-1

[Event "GER-ch Youth-U12 2024"]
[Site "Willingen"]
[Date "2024.05.25"]
[Round "9"]
[White "Balashvili, Amiran"]
[Black "Gersemann, Karl"]
[Result "1-0"]
[ECO "B28"]
[WhiteElo "1682"]
[BlackElo "1729"]
[Annotator "NA RC"]
[PlyCount "81"]
[EventDate "2022.06.05"]
[EventType "swiss"]
[EventRounds "9"]
[EventCountry "GER"]
[SourceTitle "playchess.com"]
[Source "ChessBase"]
[SourceQuality "1"]
[TimeControl "40/4500+30:900+30"]

1. e4 {[%emt 0:00:00]} c5 {[%emt 0:00:00]} 2. Nf3 {[%emt 0:00:00]} a6 {[%emt 0:00:00]} 3. d4 {[%emt 0:00:00]} cxd4 {[%emt 0:00:00]} 4. Nxd4 {[%emt 0:00:00]} Nf6 {[%emt 0:00:00]} 5. Nc3 {[%emt 0:00:00]} e5 {[%emt 0:00:00]} 6. Nf3 {[%emt 0:00:00]} Bb4 {[%emt 0:00:00]} 7. Bd3 {[%emt 0:00:00]} d5 {[%emt 0:00:00]} 8. exd5 {[%emt 0:00:00]} e4 {[%emt 0:00:00]} 9. Qe2 {[%emt 0:00:00]} Bxc3+ {[%emt 0:00:00]} 10. bxc3 {[%emt 0:00:00]} O-O {[%emt 0:00:00]} 11. Bxe4 {[%emt 0:00:00]} Re8 {[%emt 0:00:00]} 12. Nd2 {[%emt 0:00:00]} Nxe4 {[%emt 0:00:00]} 13. Nxe4 {[%emt 0:00:00]} f5 {[%emt 0:00:00]} 14. O-O {[%emt 0:00:00]} fxe4 {[%emt 0:00:00]} 15. c4 {[%emt 0:00:00]} Qf6 {[%emt 0:00:00]} 16. Ba3 {[%emt 0:00:00]} Qg6 {[%emt 0:00:00]} 17. Kh1 {[%emt 0:00:00]} Bg4 {[%emt 0:00:00]} 18. Qe3 {[%emt 0:00:00]} Nd7 {[%emt 0:02:46]} 19. h3 {[%emt 0:00:00]} Qh5 {[%emt 0:02:45]} 20. Kg1 {[%emt 0:00:00]} Be2 {[%emt 0:01:31]} 21. g4 {[%emt 0:00:00]} Bxg4 {[%emt 0:00:26]} 22. hxg4 {[%emt 0:00:00]} Qxg4+ {[%emt 0:00:14]} 23. Qg3 {[%emt 0:00:00]} Qxg3+ {[%emt 0:06:28]} 24. fxg3 {[%emt 0:00:00]} Nb6 {[%emt 0:00:19]} 25. Rab1 {[%emt 0:23:35]} Nxc4 {[%emt 0:00:05]} 26. Rxb7 {[%emt 0:00:05]} Rab8 {[%emt 0:00:15]} 27. Rc7 {[%emt 0:31:36]} Nxa3 {[%emt 0:19:38]} 28. Rff7 {[%emt 0:00:32]} Re5 {[%emt 0:02:11]} 29. Rxg7+ {[%emt 0:00:15]} Kh8 {[%emt 0:00:26]} 30. Rxh7+ {[%emt 0:00:05]} Kg8 {[%emt 0:00:07]} 31. Rcg7+ {[%emt 0:03:17]} Kf8 {[%emt 0:00:07]} 32. Rf7+ {[%emt 0:00:20]} Ke8 {[%emt 0:00:15]} 33. Rfg7 {[%emt 0:00:12]} Rf5 {[%emt 0:00:28]} 34. Rg8+ {[%emt 0:00:09]} Rf8 {[%emt 0:00:10]} 35. Rxf8+ {[%emt 0:00:03]} Kxf8 {[%emt 0:00:10]} 36. Rh8+ {[%emt 0:00:01]} Ke7 {[%emt 0:00:07]} 37. Rxb8 {[%emt 0:00:03]} Kd6 {[%emt 0:00:08]} 38. Rd8+ {[%emt 0:00:17]} Ke7 {[%emt 0:00:05]} 39. Ra8 {[%emt 0:00:13]} Nxc2 {[%emt 0:00:08]} 40. Rxa6 {[%emt 0:00:14]} e3 {[%emt 0:00:25]} 41. Kf1 {[%emt 0:15:10]} 1-0

[Event "GER-ch Youth-U12 2024"]
[Site "Willingen"]
[Date "2024.05.25"]
[Round "9"]
[White "Heitmann, Erik"]
[Black "Schellinger, Florian"]
[Result "1-0"]
[ECO "E35"]
[WhiteElo "1644"]
[BlackElo "863"]
[Annotator "NA RC"]
[PlyCount "65"]
[EventDate "2022.06.05"]
[EventType "swiss"]
[EventRounds "9"]
[EventCountry "GER"]
[SourceTitle "playchess.com"]
[Source "ChessBase"]
[SourceQuality "1"]
[TimeControl "40/4500+30:900+30"]

1. d4 {[%emt 0:00:00]} e6 {[%emt 0:00:00]} 2. c4 {[%emt 0:00:00]} Nf6 {[%emt 0:00:00]} 3. Nc3 {[%emt 0:00:00]} Bb4 {[%emt 0:00:00]} 4. Qc2 {[%emt 0:00:00]} d5 {[%emt 0:00:00]} 5. cxd5 {[%emt 0:00:20]} exd5 {[%emt 0:00:00]} 6. Bg5 {[%emt 0:00:00]} Nc6 {[%emt 0:00:00]} 7. e3 {[%emt 0:00:00]} O-O {[%emt 0:00:00]} 8. Bd3 {[%emt 0:00:00]} Qd6 {[%emt 0:00:00]} 9. Bxf6 {[%emt 0:00:00]} Qxf6 {[%emt 0:00:00]} 10. Bxh7+ {[%emt 0:00:00]} Kh8 {[%emt 0:00:00]} 11. Bd3 {[%emt 0:00:00]} Qg5 {[%emt 0:00:00]} 12. g3 {[%emt 0:00:00]} Be6 {[%emt 0:00:00]} 13. Nf3 {[%emt 0:00:00]} Qg4 {[%emt 0:00:00]} 14. Be2 {[%emt 0:00:00]} Qh3 {[%emt 0:00:00]} 15. Ng5 {[%emt 0:00:00]} Qh6 {[%emt 0:00:00]} 16. h4 {[%emt 0:00:00]} Rae8 {[%emt 0:00:00]} 17. O-O-O {[%emt 0:00:23]} f6 {[%emt 0:00:00]} 18. Bd3 {[%emt 0:02:07]} f5 {[%emt 0:00:06]} 19. Nxe6 {[%emt 0:02:25]} Qxe6 {[%emt 0:00:48]} 20. h5 {[%emt 0:00:28]} Kg8 {[%emt 0:01:30]} 21. Rh4 {[%emt 0:02:09]} g5 {[%emt 0:00:35]} 22. hxg6 {[%emt 0:00:13]} Qxg6 {[%emt 0:00:20]} 23. g4 {[%emt 0:00:38]} Qg5 {[%emt 0:00:21]} 24. Rh5 {[%emt 0:02:39]} Qxg4 {[%emt 0:00:11]} 25. Rhh1 {[%emt 0:02:10]} Qf3 {[%emt 0:00:51]} 26. Rdg1+ {[%emt 0:00:38]} Kf7 {[%emt 0:00:19]} 27. Bxf5 {[%emt 0:00:42]} Ke7 {[%emt 0:00:48]} 28. Rh7+ {[%emt 0:00:28]} Kd8 {[%emt 0:00:25]} 29. Rd7+ {[%emt 0:01:11]} Kc8 {[%emt 0:00:04]} 30. Bg4 {[%emt 0:00:55]} Nxd4 {[%emt 0:02:03]} 31. exd4 {[%emt 0:04:34]} Qf4+ {[%emt 0:00:18]} 32. Kb1 {[%emt 0:00:58]} Qxd4 {[%emt 0:00:16]} 33. Rxd5+ {[%emt 0:00:39]} 1-0

[Event "GER-ch Youth-U12 2024"]
[Site "Willingen"]
[Date "2024.05.25"]
[Round "9"]
[White "Doeding, Alexander"]
[Black "Prashanthakumar, Arnesh"]
[Result "1-0"]
[ECO "C24"]
[WhiteElo "1633"]
[BlackElo "1634"]
[Annotator "NA RC"]
[PlyCount "53"]
[EventDate "2022.06.05"]
[EventType "swiss"]
[EventRounds "9"]
[EventCountry "GER"]
[SourceTitle "playchess.com"]
[Source "ChessBase"]
[SourceQuality "1"]
[TimeControl "40/4500+30:900+30"]

1. e4 {[%emt 0:00:00]} e5 {[%emt 0:00:00]} 2. Bc4 {[%emt 0:00:00]} Nf6 {[%emt 0:00:00]} 3. d4 {[%emt 0:00:00]} exd4 {[%emt 0:00:00]} 4. Nf3 {[%emt 0:00:00]} Bc5 {[%emt 0:00:00]} 5. O-O {[%emt 0:00:00]} O-O {[%emt 0:00:00]} 6. e5 {[%emt 0:00:00]} d5 {[%emt 0:00:00]} 7. exf6 {[%emt 0:00:00]} dxc4 {[%emt 0:00:00]} 8. fxg7 {[%emt 0:00:00]} Re8 {[%emt 0:00:00]} 9. Ng5 {[%emt 0:00:00]} Bf5 {[%emt 0:05:28]} 10. Nxf7 {[%emt 0:20:10]} Kxf7 {[%emt 0:07:36]} 11. Qh5+ {[%emt 0:00:24]} Bg6 {[%emt 0:04:19]} 12. Qxc5 {[%emt 0:00:06]} Nc6 {[%emt 0:01:27]} 13. Qxc4+ {[%emt 0:06:13]} Kxg7 {[%emt 0:02:12]} 14. Bd2 {[%emt 0:10:33]} Qd6 {[%emt 0:05:53]} 15. Na3 {[%emt 0:07:26]} Ne5 {[%emt 0:04:28]} 16. Qb3 {[%emt 0:00:46]} d3 {[%emt 0:03:58]} 17. Nc4 {[%emt 0:06:50]} Nxc4 {[%emt 0:02:28]} 18. Qxc4 {[%emt 0:00:53]} Rac8 {[%emt 0:06:55]} 19. Bc3+ {[%emt 0:04:09]} Kf8 {[%emt 0:01:13]} 20. Rad1 {[%emt 0:00:58]} Red8 {[%emt 0:02:50]} 21. Rfe1 {[%emt 0:04:25]} Bf7 {[%emt 0:02:43]} 22. Qg4 {[%emt 0:03:18]} Qg6 {[%emt 0:01:57]} 23. Qh4 {[%emt 0:03:08]} Bd5 {[%emt 0:02:31]} 24. g3 {[%emt 0:03:07]} Qf7 {[%emt 0:03:56]} 25. Rxd3 {[%emt 0:02:19]} Rd6 {[%emt 0:02:32]} 26. Rde3 {[%emt 0:01:07]} Rd7 {[%emt 0:02:29]} 27. Bf6 {[%emt 0:03:09]} 1-0

[Event "GER-ch Youth-U12 2024"]
[Site "Willingen"]
[Date "2024.05.25"]
[Round "9"]
[White "Franke, Moritz"]
[Black "Schmidt, Jossip"]
[Result "0-1"]
[ECO "C54"]
[WhiteElo "1597"]
[BlackElo "1603"]
[Annotator "NA RC"]
[PlyCount "38"]
[EventDate "2022.06.05"]
[EventType "swiss"]
[EventRounds "9"]
[EventCountry "GER"]
[SourceTitle "playchess.com"]
[Source "ChessBase"]
[SourceQuality "1"]
[TimeControl "40/4500+30:900+30"]

1. e4 {[%emt 0:00:00]} e5 {[%emt 0:00:00]} 2. Nf3 {[%emt 0:00:00]} Nc6 {[%emt 0:00:00]} 3. Bc4 {[%emt 0:00:00]} Bc5 {[%emt 0:00:00]} 4. c3 {[%emt 0:00:00]} Nf6 {[%emt 0:00:00]} 5. d4 {[%emt 0:00:00]} exd4 {[%emt 0:00:00]} 6. cxd4 {[%emt 0:00:00]} Bb4+ {[%emt 0:00:00]} 7. Nc3 {[%emt 0:00:00]} Nxe4 {[%emt 0:00:00]} 8. O-O {[%emt 0:00:00]} Bxc3 {[%emt 0:00:00]} 9. d5 {[%emt 0:00:00]} Ne7 {[%emt 0:00:00]} 10. bxc3 {[%emt 0:00:00]} O-O {[%emt 0:00:00]} 11. Re1 {[%emt 0:00:00]} Nd6 {[%emt 0:01:14]} 12. Qd4 {[%emt 0:00:00]} Nxc4 {[%emt 0:01:01]} 13. Qxc4 {[%emt 0:00:00]} d6 {[%emt 0:00:36]} 14. Qe4 {[%emt 0:00:00]} Re8 {[%emt 0:00:53]} 15. Ng5 {[%emt 0:00:00]} Bf5 {[%emt 0:02:07]} 16. Qh4 {[%emt 0:00:00]} h6 {[%emt 0:00:44]} 17. Nf3 {[%emt 0:00:00]} Nxd5 {[%emt 0:00:27]} 18. Rxe8+ {[%emt 0:00:00]} Qxe8 {[%emt 0:00:19]} 19. Nd4 {[%emt 0:01:27]} Qe1# {[%emt 0:00:23]} 0-1

[Event "GER-ch Youth-U12 2024"]
[Site "Willingen"]
[Date "2024.05.25"]
[Round "9"]
[White "Gao, Chenzhuo"]
[Black "König, Lian"]
[Result "1-0"]
[ECO "D05"]
[WhiteElo "1580"]
[BlackElo "1180"]
[Annotator "NA"]
[PlyCount "93"]
[EventDate "2022.06.05"]
[EventType "swiss"]
[EventRounds "9"]
[EventCountry "GER"]
[SourceTitle "playchess.com"]
[Source "ChessBase"]
[SourceQuality "1"]
[TimeControl "40/4500+30:900+30"]

1. d4 {[%emt 0:00:00]} d5 {[%emt 0:00:00]} 2. Nf3 {[%emt 0:00:00]} Nf6 {[%emt 0:00:00]} 3. e3 {[%emt 0:00:00]} e6 {[%emt 0:00:00]} 4. Bd3 {[%emt 0:00:00]} Bd6 {[%emt 0:00:00]} 5. O-O {[%emt 0:00:00]} O-O {[%emt 0:00:00]} 6. Nbd2 {[%emt 0:00:00]} b6 {[%emt 0:00:00]} 7. e4 {[%emt 0:00:00]} dxe4 {[%emt 0:00:00]} 8. Nxe4 {[%emt 0:00:00]} Bb7 {[%emt 0:00:50]} 9. Nxd6 {[%emt 0:00:00]} Qxd6 {[%emt 0:05:47]} 10. c3 {[%emt 0:00:00]} Ng4 {[%emt 0:10:31]} 11. g3 {[%emt 0:00:36]} Qd5 {[%emt 0:15:47]} 12. Be2 {[%emt 0:00:19]} Nf6 {[%emt 0:16:54]} 13. Bf4 {[%emt 0:02:03]} c5 {[%emt 0:01:16]} 14. dxc5 {[%emt 0:00:50]} Qxd1 {[%emt 0:00:31]} 15. Raxd1 {[%emt 0:00:25]} bxc5 {[%emt 0:00:09]} 16. Bd6 {[%emt 0:00:51]} Rc8 {[%emt 0:00:47]} 17. Bxc5 {[%emt 0:01:36]} h6 {[%emt 0:02:03]} 18. Bd6 {[%emt 0:02:35]} a5 {[%emt 0:02:00]} 19. Ne5 {[%emt 0:02:59]} Ba6 {[%emt 0:04:13]} 20. Bxa6 {[%emt 0:00:42]} Rxa6 {[%emt 0:00:17]} 21. Ba3 {[%emt 0:02:58]} Ra7 {[%emt 0:04:05]} 22. Rd4 {[%emt 0:01:29]} Nbd7 {[%emt 0:01:17]} 23. Nxd7 {[%emt 0:01:02]} Rxd7 {[%emt 0:00:12]} 24. Rxd7 {[%emt 0:00:53]} Nxd7 {[%emt 0:00:06]} 25. Rd1 {[%emt 0:00:08]} Nf6 {[%emt 0:00:07]} 26. f3 {[%emt 0:00:53]} Nd5 {[%emt 0:01:33]} 27. Kf2 {[%emt 0:01:40]} Nb6 {[%emt 0:01:08]} 28. Be7 {[%emt 0:01:18]} Nd5 {[%emt 0:00:39]} 29. Bd6 {[%emt 0:01:16]} Rc6 {[%emt 0:00:55]} 30. Be5 {[%emt 0:00:33]} Rc8 {[%emt 0:03:14]} 31. Ke2 {[%emt 0:02:15]} Nb6 {[%emt 0:01:09]} 32. b3 {[%emt 0:02:12]} a4 {[%emt 0:04:03]} 33. c4 {[%emt 0:01:14]} axb3 {[%emt 0:04:10]} 34. axb3 {[%emt 0:00:08]} f6 {[%emt 0:02:33]} 35. Bd4 {[%emt 0:00:50]} Na8 {[%emt 0:01:52]} 36. Rb1 {[%emt 0:01:45]} e5 {[%emt 0:00:26]} 37. Be3 {[%emt 0:00:16]} Rd8 {[%emt 0:00:16]} 38. b4 {[%emt 0:00:18]} f5 {[%emt 0:02:26]} 39. b5 {[%emt 0:00:22]} Kf7 {[%emt 0:00:26]} 40. b6 {[%emt 0:00:49]} Nxb6 {[%emt 0:00:07]} 41. Rxb6 {[%emt 0:15:52]} Rc8 {[%emt 0:15:48]} 42. c5 {[%emt 0:00:37]} Ke7 {[%emt 0:00:18]} 43. Rb7+ {[%emt 0:00:31]} Kf8 {[%emt 0:00:37]} 44. Kd3 {[%emt 0:00:18]} f4 {[%emt 0:00:46]} 45. gxf4 {[%emt 0:00:25]} exf4 {[%emt 0:00:09]} 46. Bxf4 {[%emt 0:00:12]} Rxc5 {[%emt 0:00:12]} 47. Bd6+ {[%emt 0:00:10]} 1-0

[Event "GER-ch Youth-U12 2024"]
[Site "Willingen"]
[Date "2024.05.25"]
[Round "9"]
[White "Kaza, Charith"]
[Black "Chua, Daniel James"]
[Result "1-0"]
[ECO "B76"]
[WhiteElo "1503"]
[BlackElo "1751"]
[Annotator "NA RC"]
[PlyCount "62"]
[EventDate "2022.06.05"]
[EventType "swiss"]
[EventRounds "9"]
[EventCountry "GER"]
[SourceTitle "playchess.com"]
[Source "ChessBase"]
[SourceQuality "1"]
[TimeControl "40/4500+30:900+30"]

1. e4 {[%emt 0:00:00]} c5 {[%emt 0:00:00]} 2. Nf3 {[%emt 0:00:00]} d6 {[%emt 0:00:00]} 3. d4 {[%emt 0:00:00]} cxd4 {[%emt 0:00:00]} 4. Nxd4 {[%emt 0:00:00]} Nf6 {[%emt 0:00:00]} 5. Nc3 {[%emt 0:00:00]} g6 {[%emt 0:00:00]} 6. Be3 {[%emt 0:00:00]} Bg7 {[%emt 0:00:00]} 7. Nb3 {[%emt 0:00:00]} O-O {[%emt 0:00:00]} 8. f3 {[%emt 0:00:00]} Nc6 {[%emt 0:00:00]} 9. Qd2 {[%emt 0:00:00]} Be6 {[%emt 0:00:14]} 10. O-O-O {[%emt 0:00:00]} Bxb3 {[%emt 0:00:00]} 11. cxb3 {[%emt 0:00:00]} Rc8 {[%emt 0:00:00]} 12. Kb1 {[%emt 0:00:00]} Nd7 {[%emt 0:00:00]} 13. Bh6 {[%emt 0:00:00]} Qa5 {[%emt 0:06:17]} 14. Bxg7 {[%emt 0:06:22]} Kxg7 {[%emt 0:00:04]} 15. h4 {[%emt 0:04:52]} Nf6 {[%emt 0:13:39]} 16. g4 {[%emt 0:00:51]} Rfd8 {[%emt 0:02:09]} 17. h5 {[%emt 0:04:29]} d5 {[%emt 0:00:45]} 18. hxg6 {[%emt 0:10:26]} fxg6 {[%emt 0:01:56]} 19. Qh6+ {[%emt 0:00:13]} Kf7 {[%emt 0:01:20]} 20. g5 {[%emt 0:01:33]} Nb4 {[%emt 0:06:15]} 21. gxf6 {[%emt 0:03:33]} Rxc3 {[%emt 0:00:08]} 22. Qxh7+ {[%emt 0:00:07]} Kxf6 {[%emt 0:00:12]} 23. e5+ {[%emt 0:00:12]} Kg5 {[%emt 0:14:58]} 24. Qh4+ {[%emt 0:02:53]} Kf5 {[%emt 0:00:01]} 25. Bh3+ {[%emt 0:00:07]} Kxe5 {[%emt 0:00:09]} 26. Qxe7+ {[%emt 0:00:03]} Kf4 {[%emt 0:00:14]} 27. Qf6+ {[%emt 0:00:58]} Kg3 {[%emt 0:00:59]} 28. Qg5+ {[%emt 0:04:10]} Kxf3 {[%emt 0:01:53]} 29. Qg4+ {[%emt 0:01:40]} Kf2 {[%emt 0:01:14]} 30. Rhf1+ {[%emt 0:00:00]} Ke3 {[%emt 0:00:10]} 31. Rfe1+ {[%emt 0:00:00]} Kf2 {[%emt 0:00:11]} 1-0

[Event "GER-ch Youth-U12 2024"]
[Site "Willingen"]
[Date "2024.05.25"]
[Round "9"]
[White "Levytskyi, Oleksandr"]
[Black "Lee, Ho In"]
[Result "1/2-1/2"]
[ECO "A36"]
[WhiteElo "1467"]
[BlackElo "1668"]
[Annotator "NA RC"]
[PlyCount "66"]
[EventDate "2022.06.05"]
[EventType "swiss"]
[EventRounds "9"]
[EventCountry "GER"]
[SourceTitle "playchess.com"]
[Source "ChessBase"]
[SourceQuality "1"]
[TimeControl "40/4500+30:900+30"]

1. e4 {[%emt 0:00:00]} c5 {[%emt 0:00:00]} 2. c4 {[%emt 0:00:00]} Nc6 {[%emt 0:00:00]} 3. Ne2 {[%emt 0:00:00]} e5 {[%emt 0:00:00]} 4. d3 {[%emt 0:00:00]} d6 {[%emt 0:00:00]} 5. Nbc3 {[%emt 0:00:00]} g6 {[%emt 0:00:00]} 6. g3 {[%emt 0:00:00]} Bg7 {[%emt 0:00:00]} 7. Bg2 {[%emt 0:00:00]} Nge7 {[%emt 0:00:00]} 8. O-O {[%emt 0:00:00]} O-O {[%emt 0:00:00]} 9. f4 {[%emt 0:00:00]} Nd4 {[%emt 0:03:59]} 10. Nxd4 {[%emt 0:00:00]} exd4 {[%emt 0:00:15]} 11. Nd5 {[%emt 0:00:00]} Nxd5 {[%emt 0:03:40]} 12. exd5 {[%emt 0:00:04]} f5 {[%emt 0:04:57]} 13. Qf3 {[%emt 0:00:37]} Bd7 {[%emt 0:01:00]} 14. Bd2 {[%emt 0:00:19]} Qb6 {[%emt 0:01:28]} 15. b3 {[%emt 0:00:10]} Rae8 {[%emt 0:00:18]} 16. Rfb1 {[%emt 0:03:16]} Qc7 {[%emt 0:07:31]} 17. b4 {[%emt 0:04:46]} b6 {[%emt 0:00:06]} 18. b5 {[%emt 0:00:07]} Ra8 {[%emt 0:00:11]} 19. a4 {[%emt 0:00:17]} a5 {[%emt 0:00:58]} 20. Re1 {[%emt 0:00:12]} Rae8 {[%emt 0:01:48]} 21. Rxe8 {[%emt 0:00:08]} Rxe8 {[%emt 0:00:05]} 22. Re1 {[%emt 0:00:09]} Qd8 {[%emt 0:00:30]} 23. Qf2 {[%emt 0:00:04]} Kf7 {[%emt 0:02:26]} 24. Kf1 {[%emt 0:00:12]} h6 {[%emt 0:00:52]} 25. Rxe8 {[%emt 0:00:15]} Qxe8 {[%emt 0:00:04]} 26. Qe2 {[%emt 0:00:07]} Qxe2+ {[%emt 0:00:53]} 27. Kxe2 {[%emt 0:00:05]} Bf6 {[%emt 0:00:03]} 28. Kf3 {[%emt 0:00:43]} g5 {[%emt 0:01:02]} 29. Ke2 {[%emt 0:00:06]} Kg6 {[%emt 0:00:13]} 30. Bf3 {[%emt 0:00:26]} h5 {[%emt 0:02:23]} 31. fxg5 {[%emt 0:01:10]} Bxg5 {[%emt 0:00:06]} 32. Bxg5 {[%emt 0:00:06]} Kxg5 {[%emt 0:00:03]} 33. h4+ {[%emt 0:00:07]} Kg6 {[%emt 0:00:26]} 1/2-1/2